Cogmind - Beta 13 @@@ ROGUE MODE // 2024.03.02 @ 00:28:51 Player: Geordi Result: Destroyed by G-47 Trooper with Particle Gun Performance ------------- Evolutions (2) 1000 Regions Visited (3) 600 Robots Destroyed (53) 265 Value Destroyed (1646) 1646 Prototype IDs (5) 100 Alien Tech Used (0) 0 Bonus (86) 86 TOTAL SCORE: 3697 Bonus ------- High Alert Combat Kills 86 Cogmind --------- Core Integrity 0/550 Matter 266/300 Energy 100/100 System Corruption 0% Temperature Cool (18) Movement Core (200) Ox3 Location -8/Materials Parts ------- > --- POWER (2) -------- (None) > --- PROPULSION (3) --- (None) > --- UTILITY (3) ------ Medium Storage Unit > --- WEAPON (3) ------- (None) > --- INVENTORY (10) --- Light Ion Engine Improved Heat Sink High-capacity Matter Pod (200) Structural Scanner Terrain Scan Processor Seismic Detector Improved Assault Rifle Peak State ------------ > --- POWER ------------ Light Ion Engine Light Nuclear Core > --- PROPULSION ------- Light Treads Light Treads Light Treads > --- UTILITY ---------- Medium Storage Unit Weight Redist. System Recoil Stabilizer > --- WEAPON ----------- Small Laser Autogun Shotgun > --- INVENTORY -------- High-capacity Matter Pod Structural Scanner Terrain Scan Processor Seismic Detector EM Pulse Cannon Assault Rifle Improved Assault Rifle Grenade Launcher Grenade Launcher Mini Grenade Launcher [Rating: 19] Favorites ----------- Power Light Ion Engine Engine Light Ion Engine Power Core Light Nuclear Core Propulsion Light Treads Treads Light Treads Leg Aluminum Leg Utility Medium Storage Unit Device Weight Redist. System Storage Medium Storage Unit Protection Light Armor Plating Weapon Small Laser Energy Gun Small Laser Energy Cannon EM Pulse Cannon Ballistic Gun Autogun Launcher Mini Grenade Launcher Build | -11 -10 -9 -8 ------- Run | Yrd Mat Mat Mat Slots Evolved 4 | . . 2 2 Power 1 | . . . 1 Propulsion 1 | . . 1 . Utility 1 | . . . 1 Weapon 1 | . . 1 . Parts Attached 37 | 6 7 7 17 Power 7 | 1 2 . 4 Engine 5 | 1 2 . 2 Core 2 | . . . 2 Reactor . | . . . . Propulsion 9 | 2 2 3 2 Treads 7 | 2 . 3 2 Leg 2 | . 2 . . Wheel . | . . . . Hover . | . . . . Flight . | . . . . Utility 6 | 1 . 2 3 Device 3 | . . 1 2 Storage 2 | 1 . 1 . Processor . | . . . . Hackware . | . . . . Protection 1 | . . . 1 Artifact . | . . . . Weapon 15 | 2 3 2 8 Energy Gun 3 | 1 1 . 1 Energy Cannon 1 | . . . 1 Ballistic Gun 7 | 1 . 1 5 Ballistic Cannon . | . . . . Launcher 4 | . 2 1 1 Special Weapon . | . . . . Impact Weapon . | . . . . Slashing Weapon . | . . . . Piercing Weapon . | . . . . Special Melee Weapon . | . . . . Unidentified Prototypes . | . . . . Parts Lost 22 | . 3 . 19 Power 5 | . 1 . 4 Propulsion 7 | . 2 . 5 Utility 4 | . . . 4 Weapon 6 | . . . 6 Highest Loss Streak 12 | . 1 . 12 To Critical Strikes . | . . . . Average Slot Usage (%) 82 | . 82 89 78 Engine 9 | . 12 11 7 Core 2 | . . . 6 Treads 17 | . 12 22 16 Leg 4 | . 14 3 . Device 7 | . . 9 10 Storage 10 | . 14 11 9 Protection 1 | . . . 3 Energy Gun 9 | . 9 11 8 Ballistic Gun 9 | . 7 8 10 Launcher 8 | . 10 11 5 Naked Turns . | . . . . Heaviest Build 28 | 11 14 20 28 Greatest Support 66 | 40 40 66 66 Greatest Overweight (x) 7 | . 1 1 7 Average Overweight (x) . | . . . . Largest Inventory Capacity 10 | 8 8 10 10 Average Capacity 9 | 7 8 9 10 Most Carried 10 | 3 8 10 10 Average Carried 7 | 1 5 8 9 Final Capacity 10 | 8 8 10 10 Final Carried 10 | 3 8 10 7 Class Distribution -------------------- 38% | Mutant 36% | Gunner 14% | Scavenger-Tank 10% | Scavenger-Gunner Dominant Class ---------------- Mutant | -10/Materials Gunner | -9/Materials Gunner | -8/Materials Resources | -11 -10 -9 -8 ----------- Run | Yrd Mat Mat Mat Matter Collected 1287 | 223 183 131 750 Remotely . | . . . . Salvage Created 1548 | . 384 189 975 Parts 103 | . 30 12 61 Haulers Intercepted . | . . . . Recyclers Shooed 1 | . . . 1 Parts Field Recycled . | . . . . Retrieved Matter . | . . . . Parts Self-Destructed . | . . . . Prevented . | . . . . Kills | -11 -10 -9 -8 ------- Run | Yrd Mat Mat Mat Combat Hostiles Destroyed 39 | . 10 6 23 Guns 23 | . 7 4 12 Cannons 3 | . . . 3 AOE 13 | . 3 2 8 Classes Destroyed 7 | . 5 2 . Worker 7 | . 4 . 3 Builder 4 | . 2 1 1 Watcher 3 | . 2 . 1 Swarmer 7 | . 3 . 4 Grunt 24 | . 7 4 13 Duelist 2 | . . 1 1 Sentry 6 | . . 1 5 Best Kill Streak 11 | . 10 3 11 Combat Bots Only 8 | . 5 3 8 Max Kills in Single Turn 4 | . 1 1 4 Gunslinging . | . . . . Exploded 3 | . 1 1 3 Melee . | . . . . Uniques/NPCs Destroyed . | . . . . Combat | -11 -10 -9 -8 -------- Run | Yrd Mat Mat Mat Hostile Shots Fired 314 | . 84 14 216 Missed 93 | . 21 5 67 Damage Taken 3144 | . 815 123 2206 Core 712 | . 146 . 566 Absorbed by Shields . | . . . . Core Remaining (%) 80 | 100 41 100 . Volleys Fired 110 | . 30 13 67 Largest 3 | . 2 3 3 Hottest 126 | . 70 93 126 Shots Fired 217 | . 53 31 133 Gun 180 | . 44 24 112 Cannon 12 | . . . 12 Launcher 25 | . 9 7 9 Special . | . . . . Kinetic 116 | . 25 13 78 Thermal 64 | . 19 11 34 Explosive 25 | . 9 7 9 Electromagnetic 12 | . . . 12 Robot Hit Streak 14 | . 14 9 9 Robot Miss Streak 6 | . 4 3 6 Penetration Max . | . . . . Secondary Targets 1 | . . . 1 Max Gunslinging Chain 1 | . . . 1 Shots Hit Robots 141 | . 35 19 87 Core Hits 110 | . 25 18 67 Critical Kills . | . . . . Critical Parts Destroyed . | . . . . Critical Strikes . | . . . . Melee Attacks . | . . . . Impact . | . . . . Slashing . | . . . . Piercing . | . . . . Sneak Attacks . | . . . . Combat Hostiles . | . . . . Follow-up Attacks . | . . . . Damage Inflicted 3711 | . 891 429 2391 Guns 1697 | . 404 179 1114 Cannons 176 | . . . 176 Explosions 1828 | . 487 250 1091 Melee . | . . . . Ramming 10 | . . . 10 Kinetic 1160 | . 214 104 842 Thermal 537 | . 190 75 272 Explosive 1775 | . 487 250 1038 Electromagnetic 229 | . . . 229 Impact . | . . . . Slashing . | . . . . Piercing . | . . . . Highest Corruption . | . . . . Average Corruption . | . . . . Corruption Purged . | . . . . Corruption Blocked . | . . . . Overload Shots . | . . . . Overflow Damage 88 | . 60 . 28 Projectiles . | . . . . Explosions 88 | . 60 . 28 Melee . | . . . . Knockbacks . | . . . . Impact . | . . . . Kinetic . | . . . . Secondary . | . . . . Self-Inflicted Damage 216 | . 158 27 31 Shots 6 | . 4 1 1 Rammed 6 | . . . 6 Targets Rammed 6 | . . . 6 Kicked . | . . . . Crushed . | . . . . Highest Temperature 297 | . 96 91 297 Average Temperature 73 | . 34 44 90 Received Heat Transfer 1245 | . 228 54 963 Effects 3 | . . . 3 Energy Bleed 1 | . . . 1 Interference 2 | . . . 2 Siege Activations . | . . . . Robots Corrupted . | . . . . Combat Hostiles . | . . . . Parts Fried 2 | . . . 2 Impact Corruptions . | . . . . Robots Melted . | . . . . Combat Hostiles . | . . . . Parts Melted . | . . . . Heat Transferred 1212 | . 425 175 612 Parts Sabotaged . | . . . . Parts Stolen . | . . . . Parts Stripped . | . . . . Power Chain Reactions . | . . . . Alert | -11 -10 -9 -8 ------- Run | Yrd Mat Mat Mat Peak Influence 557 | . 507 476 557 Initial 213 | . . 213 116 Average 257 | . 257 326 269 Maximum Alert Level 2 | . 2 2 2 Low Security (%) 30 | 100 48 . 24 Level 1 48 | . 8 74 65 Level 2 20 | . 43 25 10 Level 3 . | . . . . Level 4 . | . . . . Level 5 . | . . . . High Security . | . . . . Max Security . | . . . . Squads Dispatched 11 | . 1 3 7 Investigation 4 | . 1 1 2 Extermination . | . . . . Reinforcement 6 | . . 2 4 Assault . | . . . . Garrison 1 | . . . 1 Intercept . | . . . . Searches Triggered . | . . . . Construction Impeded 2 | . . . 2 Haulers Reinforced . | . . . . Active Scanning Responses . | . . . . Cargo Convoy Interrupts . | . . . . Stealth | -11 -10 -9 -8 --------- Run | Yrd Mat Mat Mat Distress Signals 4 | . . 2 2 Communications Jammed . | . . . . Distress Signals . | . . . . Times Spotted 67 | . 17 9 41 Peak Tracking Total 10 | . 4 3 10 Tactical Retreats 1 | . 1 . . Traps | -11 -10 -9 -8 ------- Run | Yrd Mat Mat Mat Traps Triggered . | . . . . Indirectly . | . . . . Trap Hack Attempts . | . . . . Triggered . | . . . . Disarmed . | . . . . Reprogrammed . | . . . . Reused . | . . . . Traps Extracted . | . . . . Installed . | . . . . Triggered . | . . . . Machines | -11 -10 -9 -8 ---------- Run | Yrd Mat Mat Mat Machines Disabled 13 | . 8 2 3 Max in Single Turn 4 | . 4 1 2 Machines Repaired . | . . . . Machines Dismantled . | . . . . Machines Sabotaged . | . . . . Overloaded Fab Kills . | . . . . Hacking | -11 -10 -9 -8 --------- Run | Yrd Mat Mat Mat Machines Accessed 10 | . 4 2 4 Terminals 7 | . 3 2 2 Fabricators . | . . . . Repair Stations . | . . . . Recycling Units 2 | . 1 . 1 Scanalyzers 1 | . . . 1 Garrison Access . | . . . . Total Hacks 36 | . 14 8 14 Successful 21 | . 8 5 8 Failed 15 | . 6 3 6 Catastrophic 2 | . . . 2 Database Lockouts . | . . . . Manual . | . . . . Terminals 27 | . 12 8 7 Fabricators . | . . . . Repair Stations . | . . . . Recycling Units 6 | . 2 . 4 Scanalyzers 3 | . . . 3 Garrison Access . | . . . . Terminal Hacks 16 | . 7 5 4 Record 8 | . 4 1 3 Robot Analysis 1 | . . 1 . Prototype ID Bank 2 | . 1 1 . Emergency Access Points 1 | . 1 . . Alert Level 2 | . 1 1 . Locate Traps 1 | . . . 1 Investigation Status 1 | . . 1 . Fabricator Hacks . | . . . . Repair Station Hacks . | . . . . Recycling Unit Hacks 3 | . 1 . 2 Report Inventory 2 | . 1 . 1 Retrieve Components 1 | . . . 1 Scanalyzer 2 | . . . 2 Insert Component 1 | . . . 1 Analyze 1 | . . . 1 Garrison Access Hacks . | . . . . Unauthorized Hacks . | . . . . Terminals . | . . . . Fabricators . | . . . . Repair Stations . | . . . . Recycling Units . | . . . . Scanalyzers . | . . . . Garrison Access . | . . . . Data Cores Recovered . | . . . . Used . | . . . . Hacking Detections 9 | . 3 2 4 Full Trace Events 6 | . 2 1 3 Feedback Events . | . . . . Feedback Blocked . | . . . . Robot Schematics Acquired . | . . . . Robots Built . | . . . . Authchips . | . . . . Time . | . . . . Total Robot Build Rating . | . . . . Part Schematics Acquired 1 | . . . 1 Parts Built . | . . . . Authchips . | . . . . Time . | . . . . Total Part Build Rating . | . . . . Parts Repaired . | . . . . Time . | . . . . Parts Recycled . | . . . . Recycled Matter . | . . . . Retrieved Matter . | . . . . Retrieved Components 10 | . . . 10 Parts Scanalyzed 1 | . . . 1 Part Schematics Acquired 1 | . . . 1 Parts Damaged 1 | . . . 1 Bothacking | -11 -10 -9 -8 ------------ Run | Yrd Mat Mat Mat Used RIF Installer . | . . . . Robots Hacked . | . . . . Non-combat . | . . . . Combat . | . . . . Robot Hacks Applied . | . . . . Relay Couplers Released . | . . . . Fabnet Peak Effective % . | . . . . Robots Rewired . | . . . . Allies Hacked . | . . . . Hacks Repelled . | . . . . Allies | -11 -10 -9 -8 -------- Run | Yrd Mat Mat Mat Total Allies . | . . . . Largest Group . | . . . . Highest-Rated Group . | . . . . Highest-Rated Ally . | . . . . Total Orders . | . . . . Ally Attacks . | . . . . Total Damage . | . . . . Kills . | . . . . Allies Corrupted . | . . . . Allies Melted . | . . . . Intel | -11 -10 -9 -8 ------- Run | Yrd Mat Mat Mat Robot Analysis Total 1 | . . 1 . Derelict Logs Recovered . | . . . . Drone Launches . | . . . . Drone Recoveries . | . . . . Exploration | -11 -10 -9 -8 ------------- Run | Yrd Mat Mat Mat Turns Passed 1638 | 140 386 403 709 Spaces Moved 779 | 83 211 209 276 Core 19 | 6 . . 13 Treads 562 | 77 71 151 263 Legs 198 | . 140 58 . Wheels . | . . . . Hover . | . . . . Flight . | . . . . Fastest Speed 50 | 50 120 160 150 Average Speed 160 | 152 136 168 174 Slowest Speed 400 | 160 190 190 400 Overloaded Moves . | . . . . Propulsion Burnouts . | . . . . Robots Hopped . | . . . . Cave-ins Triggered . | . . . . Exploration Rate (%) 28 | 4 50 29 30 Regions Visited 3 Branch Regions . Pre-discovered Areas . | . . . . Known Exits Taken . | . . . . Unknown Exits Taken 3 | 1 1 1 . Scrap Searched . | . . . . Spaces Dug . | . . . . Terrain Destroyed 206 | . 90 58 58 Melee . | . . . . Projectile . | . . . . AOE 206 | . 90 58 58 Terrain Rammed . | . . . . Walls Destroyed . | . . . . Machines Disabled . | . . . . Actions | -11 -10 -9 -8 --------- Run | Yrd Mat Mat Mat Total 975 | 97 254 237 387 Wait 7 | . . . 7 Move 776 | 82 210 208 276 Hop . | . . . . Pick Up 31 | 9 7 7 8 Fast Attach 9 | . . 1 8 Attach 19 | 6 2 5 6 Detach . | . . . . Swap 9 | . 5 1 3 Drop 8 | . . 2 6 Fire 110 | . 30 13 67 Melee . | . . . . Ram . | . . . . Kick . | . . . . Crush 6 | . . . 6 Escape Stasis . | . . . . Rewire . | . . . . Trap . | . . . . Miscellaneous . | . . . . Route ------- -11/Scrapyard -10/Materials (discovered 3 exits: *Mat x2 / [*Min]) -9/Materials (discovered 3 exits: *Mat / [*Sto x2]) -8/Materials History --------- Turn | Location | Event 9 | -11/Scrapyard | Discovered new exit (range 13) 141 | -11/Scrapyard | Entered Materials 314 | -10/Materials | Build established: Mutant 387 | -10/Materials | Discovered new exit (range 7) 410 | -10/Materials | Discovered new exit (range 15) 415 | -10/Materials | Core integrity fell below 50% 469 | -10/Materials | Discovered new exit (range 7) 527 | -10/Materials | Entered another Materials area 527 | -9/Materials | Evolved 2 slots: Propulsion x1, Weapon x1 531 | -9/Materials | Discovered new exit (range 15) 630 | -9/Materials | Discovered new exit (range 7) 875 | -9/Materials | Discovered new exit (range 10) 907 | -9/Materials | Build established: Gunner 930 | -9/Materials | Entered another Materials area 930 | -8/Materials | Evolved 2 slots: Power x1, Utility x1 1346 | -8/Materials | Lost 3 parts (1p1n1u) 1592 | -8/Materials | Garrison activated, responded to threat 1598 | -8/Materials | Core integrity fell below 50% 1625 | -8/Materials | Core integrity fell below 20% 1629 | -8/Materials | Destroyed 8 combat bots 1639 | -8/Materials | Destroyed by G-47 Trooper with Particle Gun Last Messages --------------- Lgt. Nuclear Core destroyed. K-01 Serf collects debris. Lgt. Ion Engine destroyed. Slug penetrates Y-45 Defender. Acquired 42 matter. K-01 Serf collects debris. Lgt. Assault Rifle destroyed. G-47 Trooper suffers critical hit (Burn). Acquired 7 matter. K-01 Serf collects debris. Autogun destroyed. K-01 Serf collects debris. The unstable cave ceiling collapses. Structural Scanner crushed. Neutrino Reactor explodes. Y-45 Defender destroyed. G-47 Trooper destroyed. G-47 Trooper shuts down. K-01 Serf collects debris. G-47 Trooper IFF system glitched. Map ----- +----------------------------------------------------+ | ?????????????????????????????????????????????????? | | ?????????????????????????????????????????????????? | | ?????????????????????????????????????????????????? | | ?????????????????????????????????????????????????? | | ?????????????????????????????????????????????????? | | ?????????????????????????????????????????????????? | | ?????????????????????????????????????????????????? | | ?????????????????????????????????????????????????? | | ######???????????????????????????????????????????? | | ##??????????????????????????????????????????? | | #??????????????????????????????????????????? | | #???????????????????????????????????????????? | | [ #???????????????????????????????????????????? | | ! #??????????????? ???????????????????????????? | | * #??????????#??? ??????????????????????????? | | " #??????????# ??????????????????????????? | | [* ###????????# ?????????????????????????? | | ###### ##???????+ T ?????????????????????????? | | = #???????# = ?????????????????????????? | | """ #???????#%% ?????????????????????????? | | !""" #???????# = ?????##??????????????????? | | !""" #???????# [%%=###### #??????????????????? | | #???????# [ =[# #??????????????????? | | ######/##???????## %= #??????????????????? | | ?????# #????????# k= #??????????????????? | | ?????# #????????# g@ #??????????????????? | | ?????# #????????# %! #??????????????????? | | ?????# ########?# [ #??????????????????? | | ?????# # #?##w *% #??????????????????? | | ?????# # """ #??# gg#g #??????????????????? | | ?????# # """ #??# = # #??????????????????? | | ?????# # "" #??# ![=#"T !#??????????????????? | | ?????# # #??# =% #"" #??????????????????? | | ?????# +% #??# = # #??????????????????? | | ?????# ########### k ########??????????????????? | | ###### ##### # ####?????????????????????? | | #?????????????????????? | | * #?????????????????????? | | =% #?????????????????????? | | ############ ### + """????????????????? | | ?????????#####+#### #%= """????????????????? | | ?????????# # [% ?"""????????????????? | | ?????????# #! # ##????????????????????? | | ?????????# # # ?????????????????????? | | ?????????# # # ????????????????????? | | ?????????# # # ???????????????????? | | ?????????# # #?? ? ??????????????????? | | ?????????#! #####?????####?????????????????? | | ?????????# #??????????????????????????????? | | ?????????# #??????????????????????????????? | +----------------------------------------------------+ Best States ------------- Heat Dissipation 31 Energy Generation 21 Energy Capacity 325 Matter Stores 300 Matter Capacity 300 Sight Range 16 Terrain Scan Density 10 Additional Mass Support 6 Armor Coverage 150 Evasion (%) 55 Recoil Reduction 7 Item Schematics ----------------- Imp. Assault Rifle | -8/Materials | Scanalyzed Robot Schematics ------------------ None Fabricated ------------ Nothing Alien Tech Used ----------------- None Achievements -------------- Crack Shot Remodeling Safety First Challenges ------------ None Game ------ Seed IonMultinovaMagmablaster Manual? 0 Play Time 00:30:41 Cumulative 2.8 hours Start 2024.03.01 @ 23:59:18 End 2024.03.02 @ 00:28:51 Sessions 1 Manual Loads 0 Difficulty Rogue Special Mode None Game No. 4 Rogue 4 Adventurer 0 Explorer 0 Win Type - Total 0 Types 0/0/0/0/0/0/0/0/0 Lore% 2 Gallery% 5 Achievement% 4 Wizard Run 0 Options --------- Layout 1 ASCII 0 Keyboard 0 Movement Mouse Keybinds 0 Fullscreen 1 Font 24/Smallcaps Map View 50x35 Zoom Use 0% Tactical HUD 0 Map Filters NONE Filters NONE Steam 1 RUN: 4c8afa01-f990-40a7-bcd9-03cabf4fb312